[Event "XII Paracin Festival 2019"]
[Site "Paracin"]
[Date "2019.07.09"]
[Round "6.25"]
[White "Tanriverdi, Enes"]
[Black "Vafin, Ayrat"]
[Result "1/2-1/2"]
[ECO "D56"]
[WhiteElo "2374"]
[BlackElo "2213"]
[Annotator "NA"]
[PlyCount "95"]
[EventDate "2019.07.05"]
[EventType "swiss"]
[EventCountry "SRB"]
[SourceTitle "playchess.com"]
[Source "ChessBase"]
[SourceQuality "1"]
[TimeControl "5400+30"]

1. d4 {[%emt 0:00:00]} d5 {[%emt 0:00:00]} 2. c4 {[%emt 0:00:00]} e6 {[%emt 0:00:00]} 3. Nc3 {[%emt 0:00:03]} Be7 {[%emt 0:00:00]} 4. Nf3 {[%emt 0:02:22]} Nf6 {[%emt 0:00:00]} 5. Bg5 {[%emt 0:00:28]} O-O {[%emt 0:00:13]} 6. e3 {[%emt 0:00:11]} h6 {[%emt 0:00:05]} 7. Bh4 {[%emt 0:00:30]} Ne4 {[%emt 0:00:06]} 8. Bxe7 {[%emt 0:00:40]} Qxe7 {[%emt 0:00:01]} 9. Rc1 {[%emt 0:02:09]} c6 {[%emt 0:00:44]} 10. Bd3 {[%emt 0:02:16]} Nxc3 {[%emt 0:00:13]} 11. Rxc3 {[%emt 0:00:08]} dxc4 {[%emt 0:00:08]} 12. Rxc4 {[%emt 0:01:39]} Nd7 {[%emt 0:02:50]} 13. O-O {[%emt 0:00:08]} e5 {[%emt 0:00:26]} 14. Bc2 {[%emt 0:00:53]} Nb6 {[%emt 0:01:30]} 15. Rc5 {[%emt 0:03:06]} Nd7 {[%emt 0:00:06]} 16. Rc3 {[%emt 0:02:25]} Re8 {[%emt 0:21:35]} 17. e4 {[%emt 0:04:46]} exd4 {[%emt 0:24:40]} 18. Nxd4 {[%emt 0:00:38]} Nf8 {[%emt 0:00:29]} 19. Rd3 {[%emt 0:46:26]} Be6 {[%emt 0:05:06]} 20. b3 {[%emt 0:01:43]} Red8 {[%emt 0:03:33]} 21. f4 {[%emt 0:01:22]} c5 {[%emt 0:01:26]} 22. Nxe6 {[%emt 0:01:30]} fxe6 {[%emt 0:11:20]} 23. e5 {[%emt 0:00:24]} Rxd3 {[%emt 0:00:02]} 24. Qxd3 {[%emt 0:00:26]} Rd8 {[%emt 0:00:12]} 25. Qe3 {[%emt 0:02:38]} Rd4 {[%emt 0:00:17]} 26. Rd1 {[%emt 0:00:36]} Rxd1+ {[%emt 0:01:31]} 27. Bxd1 {[%emt 0:00:01]} Qd7 {[%emt 0:00:17]} 28. Bc2 {[%emt 0:00:09]} Qd5 {[%emt 0:00:12]} 29. g3 {[%emt 0:00:58]} Kf7 {[%emt 0:00:32]} 30. h4 {[%emt 0:02:17]} b6 {[%emt 0:02:39]} 31. Kf2 {[%emt 0:03:12]} Ng6 {[%emt 0:04:05]} 32. Be4 {[%emt 0:00:43]} Qd7 {[%emt 0:01:47]} 33. Ke2 {[%emt 0:06:23]} Ne7 {[%emt 0:00:34]} 34. Qd3 {[%emt 0:02:23]} Qxd3+ {[%emt 0:01:02]} 35. Kxd3 {[%emt 0:00:05]} Nd5 {[%emt 0:01:04]} 36. Kc4 {[%emt 0:00:27]} Nc7 {[%emt 0:00:20]} 37. h5 {[%emt 0:00:13]} Ke7 {[%emt 0:00:15]} 38. g4 {[%emt 0:00:11]} Kf7 {[%emt 0:00:56]} 39. f5 {[%emt 0:02:57]} Ke7 {[%emt 0:00:25]} 40. Bc6 {[%emt 0:00:12]} Na6 {[%emt 0:08:25]} 41. a3 {[%emt 0:01:49]} Nc7 {[%emt 0:00:24]} 42. Be4 {[%emt 0:00:42]} Kf7 {[%emt 0:00:36]} 43. Bf3 {[%emt 0:00:07]} Ke7 {[%emt 0:00:25]} 44. Bc6 {[%emt 0:00:10]} Na6 {[%emt 0:01:10]} 45. Kb5 {[%emt 0:03:17]} Nc7+ {[%emt 0:00:04]} 46. Kc4 {[%emt 0:00:06]} Na6 {[%emt 0:00:01]} 47. Kb5 {[%emt 0:00:08]} Nc7+ {[%emt 0:00:03]} 48. Kc4 {[%emt 0:00:09]} 1/2-1/2

[Event "XII Paracin Festival 2019"]
[Site "Paracin"]
[Date "2019.07.09"]
[Round "6.26"]
[White "Nandhidhaa, P V"]
[Black "Abramovic, Bosko"]
[Result "1-0"]
[ECO "B90"]
[WhiteElo "2259"]
[BlackElo "2373"]
[Annotator "NA"]
[PlyCount "79"]
[EventDate "2019.07.05"]
[EventType "swiss"]
[EventCountry "SRB"]
[SourceTitle "playchess.com"]
[Source "ChessBase"]
[SourceQuality "1"]
[TimeControl "5400+30"]

1. e4 {[%emt 0:00:00]} c5 {[%emt 0:00:00]} 2. Nf3 {[%emt 0:00:00]} d6 {[%emt 0:00:00]} 3. d4 {[%emt 0:00:00]} cxd4 {[%emt 0:00:00]} 4. Nxd4 {[%emt 0:00:00]} Nf6 {[%emt 0:00:03]} 5. Nc3 {[%emt 0:00:00]} a6 {[%emt 0:00:04]} 6. Nb3 {[%emt 0:00:03]} Nc6 {[%emt 0:01:53]} 7. Be3 {[%emt 0:04:09]} g6 {[%emt 0:01:26]} 8. Nd5 {[%emt 0:02:52]} Nd7 {[%emt 0:02:16]} 9. Qd2 {[%emt 0:02:18]} Bg7 {[%emt 0:00:08]} 10. O-O-O {[%emt 0:00:33]} O-O {[%emt 0:01:16]} 11. h4 {[%emt 0:01:00]} h5 {[%emt 0:04:56]} 12. g4 {[%emt 0:02:54]} hxg4 {[%emt 0:00:41]} 13. h5 {[%emt 0:00:55]} Nce5 {[%emt 0:04:22]} 14. hxg6 {[%emt 0:10:06]} fxg6 {[%emt 0:04:08]} 15. Bh6 {[%emt 0:00:18]} Nf7 {[%emt 0:07:02]} 16. Bxg7 {[%emt 0:02:06]} Kxg7 {[%emt 0:00:01]} 17. Nf4 {[%emt 0:03:10]} Nde5 {[%emt 0:00:35]} 18. Nd4 {[%emt 0:01:01]} Kg8 {[%emt 0:02:37]} 19. f3 {[%emt 0:08:18]} Re8 {[%emt 0:03:40]} 20. Qh2 {[%emt 0:03:17]} e6 {[%emt 0:00:07]} 21. Bc4 {[%emt 0:03:46]} Qg5 {[%emt 0:12:33]} 22. Kb1 {[%emt 0:01:31]} Kf8 {[%emt 0:01:05]} 23. Nfxe6+ {[%emt 0:03:40]} Bxe6 {[%emt 0:00:52]} 24. Nxe6+ {[%emt 0:00:34]} Rxe6 {[%emt 0:00:17]} 25. Bxe6 {[%emt 0:00:02]} gxf3 {[%emt 0:01:19]} 26. Bxf7 {[%emt 0:02:46]} Nxf7 {[%emt 0:04:59]} 27. Qh3 {[%emt 0:01:48]} Re8 {[%emt 0:10:36]} 28. Qxf3 {[%emt 0:00:41]} Kg7 {[%emt 0:00:06]} 29. Rdf1 {[%emt 0:03:17]} Re7 {[%emt 0:00:18]} 30. Qh3 {[%emt 0:01:51]} Nh6 {[%emt 0:00:32]} 31. Rfg1 {[%emt 0:05:26]} Qf4 {[%emt 0:00:59]} 32. Rf1 {[%emt 0:01:04]} Qg5 {[%emt 0:00:12]} 33. Qc8 {[%emt 0:01:41]} Rf7 {[%emt 0:02:39]} 34. Rxf7+ {[%emt 0:00:28]} Nxf7 {[%emt 0:00:04]} 35. Qxb7 {[%emt 0:00:20]} Qg2 {[%emt 0:00:01]} 36. Rd1 {[%emt 0:00:53]} g5 {[%emt 0:00:51]} 37. Qxa6 {[%emt 0:00:48]} g4 {[%emt 0:01:21]} 38. Qf1 {[%emt 0:00:18]} Qxe4 {[%emt 0:01:17]} 39. Qd3 {[%emt 0:00:08]} Qe6 {[%emt 0:00:37]} 40. a4 {[%emt 0:01:03]} 1-0

[Event "XII Paracin Festival 2019"]
[Site "Paracin"]
[Date "2019.07.09"]
[Round "6.27"]
[White "Raahul V S"]
[Black "O`Donnell, Conor"]
[Result "1/2-1/2"]
[ECO "A10"]
[WhiteElo "2251"]
[BlackElo "2341"]
[Annotator "NA"]
[PlyCount "30"]
[EventDate "2019.07.05"]
[EventType "swiss"]
[EventCountry "SRB"]
[SourceTitle "playchess.com"]
[Source "ChessBase"]
[SourceQuality "1"]
[TimeControl "5400+30"]

1. c4 g6 2. Nc3 c5 3. Nf3 Bg7 4. d4 cxd4 5. Nxd4 Nc6 6. e3 Nf6 7. Be2 O-O 8. O-O d5 9. cxd5 Nxd5 10. Nxc6 bxc6 11. Na4 Nb6 12. Nc5 Nd7 13. Na4 Nb6 14. Nc5 Nd7 15. Na4 Nb6 1/2-1/2

[Event "XII Paracin Festival 2019"]
[Site "Paracin"]
[Date "2019.07.09"]
[Round "6.28"]
[White "Ozkan, Taha"]
[Black "Audi Ameya"]
[Result "1/2-1/2"]
[ECO "A48"]
[WhiteElo "2140"]
[BlackElo "2328"]
[Annotator "NA"]
[PlyCount "90"]
[EventDate "2019.07.05"]
[EventType "swiss"]
[EventCountry "SRB"]
[SourceTitle "playchess.com"]
[Source "ChessBase"]
[SourceQuality "1"]
[TimeControl "5400+30"]

1. d4 Nf6 {[%emt 0:00:53]} 2. Nf3 {[%emt 0:00:00]} g6 {[%emt 0:00:06]} 3. Nc3 {[%emt 0:00:00]} d5 {[%emt 0:00:12]} 4. Bf4 {[%emt 0:00:00]} Bg7 {[%emt 0:00:07]} 5. e3 {[%emt 0:00:00]} O-O {[%emt 0:00:13]} 6. Be2 {[%emt 0:00:01]} c5 {[%emt 0:00:08]} 7. Ne5 {[%emt 0:00:05]} cxd4 {[%emt 0:00:23]} 8. exd4 {[%emt 0:00:06]} Nc6 {[%emt 0:00:03]} 9. Qd2 {[%emt 0:00:13]} Nd7 {[%emt 0:01:21]} 10. Nxd5 {[%emt 0:01:21]} Ndxe5 {[%emt 0:00:03]} 11. dxe5 {[%emt 0:00:13]} Nxe5 {[%emt 0:00:05]} 12. Bg5 {[%emt 0:00:07]} f6 {[%emt 0:00:13]} 13. Be3 {[%emt 0:00:07]} e6 {[%emt 0:00:08]} 14. Nc3 {[%emt 0:00:43]} Qxd2+ {[%emt 0:00:21]} 15. Bxd2 {[%emt 0:00:18]} Bd7 {[%emt 0:01:45]} 16. O-O-O {[%emt 0:01:00]} Bc6 {[%emt 0:00:56]} 17. f3 {[%emt 0:00:33]} Rfd8 {[%emt 0:17:09]} 18. Bf4 {[%emt 0:02:30]} f5 {[%emt 0:06:33]} 19. Rhe1 {[%emt 0:03:36]} Kf7 {[%emt 0:05:25]} 20. Rxd8 {[%emt 0:08:43]} Rxd8 {[%emt 0:00:06]} 21. Bf1 {[%emt 0:00:27]} Nd7 {[%emt 0:02:11]} 22. Bc4 {[%emt 0:02:05]} Nf8 {[%emt 0:06:00]} 23. Nb5 {[%emt 0:03:31]} Bxb5 {[%emt 0:03:20]} 24. Bxb5 {[%emt 0:00:15]} Rd4 {[%emt 0:00:07]} 25. Be5 {[%emt 0:03:32]} Bxe5 {[%emt 0:02:32]} 26. Rxe5 {[%emt 0:00:06]} a6 {[%emt 0:00:11]} 27. Be2 {[%emt 0:01:22]} Rh4 {[%emt 0:15:44]} 28. h3 {[%emt 0:00:19]} Rd4 {[%emt 0:00:11]} 29. Rc5 {[%emt 0:02:37]} g5 {[%emt 0:04:10]} 30. g3 {[%emt 0:09:35]} Rd7 {[%emt 0:01:08]} 31. g4 {[%emt 0:02:39]} fxg4 {[%emt 0:02:03]} 32. hxg4 {[%emt 0:00:57]} Rd5 {[%emt 0:07:06]} 33. Rc7+ {[%emt 0:03:43]} Rd7 {[%emt 0:00:02]} 34. Rc5 {[%emt 0:00:36]} Kf6 {[%emt 0:05:12]} 35. Bd3 {[%emt 0:02:49]} Ng6 {[%emt 0:01:02]} 36. Be4 {[%emt 0:01:49]} Nf4 {[%emt 0:03:23]} 37. b4 {[%emt 0:03:11]} Ne2+ {[%emt 0:01:21]} 38. Kb2 {[%emt 0:00:09]} Ng3 {[%emt 0:00:11]} 39. Bd3 {[%emt 0:01:06]} Nh1 {[%emt 0:01:45]} 40. Rc8 {[%emt 0:03:32]} Nf2 {[%emt 0:00:16]} 41. Kc3 {[%emt 0:06:22]} Ke5 {[%emt 0:07:14]} 42. Rf8 {[%emt 0:00:56]} Nxd3 {[%emt 0:03:54]} 43. cxd3 Rg7 {[%emt 0:01:14]} 44. Kd2 {[%emt 0:03:31]} Rc7 {[%emt 0:00:55]} 45. a3 {[%emt 0:00:54]} Kd4 {[%emt 0:00:35]} 1/2-1/2

[Event "XII Paracin Festival 2019"]
[Site "Paracin"]
[Date "2019.07.09"]
[Round "6.29"]
[White "Ozsoy, Alimert"]
[Black "Krasteva, Beloslava"]
[Result "1/2-1/2"]
[ECO "B94"]
[WhiteElo "2087"]
[BlackElo "2327"]
[Annotator "NA"]
[PlyCount "63"]
[EventDate "2019.07.05"]
[EventType "swiss"]
[EventCountry "SRB"]
[SourceTitle "playchess.com"]
[Source "ChessBase"]
[SourceQuality "1"]
[TimeControl "5400+30"]

1. e4 {[%emt 0:00:00]} c5 {[%emt 0:00:00]} 2. Nf3 {[%emt 0:00:00]} d6 {[%emt 0:00:07]} 3. d4 {[%emt 0:00:00]} cxd4 {[%emt 0:00:19]} 4. Nxd4 {[%emt 0:00:00]} Nf6 {[%emt 0:00:12]} 5. Nc3 {[%emt 0:00:00]} a6 {[%emt 0:00:12]} 6. Bg5 {[%emt 0:00:10]} Nbd7 {[%emt 0:00:37]} 7. Qe2 {[%emt 0:00:08]} h6 {[%emt 0:00:45]} 8. Bh4 {[%emt 0:00:08]} g6 {[%emt 0:00:49]} 9. O-O-O {[%emt 0:01:54]} Qc7 {[%emt 0:02:20]} 10. f4 {[%emt 0:01:10]} e5 {[%emt 0:00:33]} 11. fxe5 {[%emt 0:00:31]} dxe5 {[%emt 0:00:05]} 12. Nb3 {[%emt 0:00:06]} b5 {[%emt 0:00:49]} 13. Qf3 {[%emt 0:00:23]} Bg7 {[%emt 0:02:55]} 14. Kb1 {[%emt 0:01:40]} O-O {[%emt 0:02:04]} 15. a3 {[%emt 0:04:45]} Bb7 {[%emt 0:06:25]} 16. Bd3 {[%emt 0:00:03]} Nh5 {[%emt 0:13:20]} 17. Be7 {[%emt 0:06:33]} Rfe8 {[%emt 0:02:08]} 18. Bb4 {[%emt 0:00:58]} Nf4 {[%emt 0:03:04]} 19. Rhf1 {[%emt 0:03:20]} Nf6 {[%emt 0:07:43]} 20. Ba5 {[%emt 0:06:02]} Qc6 {[%emt 0:01:36]} 21. g3 {[%emt 0:06:53]} Nxd3 {[%emt 0:01:57]} 22. Qxd3 {[%emt 0:07:02]} Rac8 {[%emt 0:05:55]} 23. Rfe1 {[%emt 0:11:59]} Qc4 {[%emt 0:07:00]} 24. Bb4 {[%emt 0:03:43]} Qxd3 {[%emt 0:02:25]} 25. Rxd3 {[%emt 0:02:20]} Rcd8 {[%emt 0:01:27]} 26. Rxd8 {[%emt 0:03:50]} Rxd8 {[%emt 0:00:09]} 27. Be7 {[%emt 0:01:12]} Re8 {[%emt 0:02:28]} 28. Bb4 {[%emt 0:04:39]} h5 {[%emt 0:02:03]} 29. Nc5 {[%emt 0:02:03]} Bc8 {[%emt 0:01:14]} 30. Rd1 {[%emt 0:06:38]} Bf8 {[%emt 0:01:45]} 31. Nd3 {[%emt 0:01:51]} Bxb4 {[%emt 0:06:17]} 32. axb4 {[%emt 0:01:26]} 1/2-1/2

[Event "XII Paracin Festival 2019"]
[Site "Paracin"]
[Date "2019.07.09"]
[Round "6.30"]
[White "Rabrenovic, Vladan"]
[Black "Kanov, Nikola"]
[Result "1-0"]
[ECO "A61"]
[WhiteElo "2326"]
[BlackElo "1908"]
[Annotator "NA"]
[PlyCount "99"]
[EventDate "2019.07.05"]
[EventType "swiss"]
[EventCountry "SRB"]
[SourceTitle "playchess.com"]
[Source "ChessBase"]
[SourceQuality "1"]
[TimeControl "5400+30"]

1. d4 {[%emt 0:00:00]} Nf6 {[%emt 0:00:00]} 2. c4 {[%emt 0:00:03]} c5 {[%emt 0:00:00]} 3. d5 {[%emt 0:00:06]} e6 {[%emt 0:00:00]} 4. Nc3 {[%emt 0:00:21]} exd5 {[%emt 0:00:00]} 5. cxd5 {[%emt 0:00:10]} d6 {[%emt 0:00:00]} 6. Nf3 {[%emt 0:07:28]} g6 {[%emt 0:00:03]} 7. Bg5 {[%emt 0:08:29]} Bg7 {[%emt 0:00:16]} 8. e4 {[%emt 0:04:27]} O-O {[%emt 0:05:37]} 9. Nd2 {[%emt 0:01:37]} h6 {[%emt 0:02:28]} 10. Bh4 {[%emt 0:01:22]} g5 {[%emt 0:05:05]} 11. Bg3 {[%emt 0:00:03]} Na6 {[%emt 0:00:08]} 12. Be2 {[%emt 0:02:32]} Nc7 {[%emt 0:00:22]} 13. a4 {[%emt 0:03:24]} Rb8 {[%emt 0:00:41]} 14. Nc4 {[%emt 0:07:58]} Nfe8 {[%emt 0:00:11]} 15. h4 {[%emt 0:11:54]} f5 {[%emt 0:01:55]} 16. exf5 {[%emt 0:01:14]} Bxf5 {[%emt 0:00:27]} 17. hxg5 {[%emt 0:00:31]} hxg5 {[%emt 0:00:13]} 18. Ne3 {[%emt 0:06:07]} Bg6 {[%emt 0:04:08]} 19. Bd3 {[%emt 0:00:56]} Bxd3 {[%emt 0:28:35]} 20. Qxd3 {[%emt 0:00:02]} Nf6 {[%emt 0:00:27]} 21. Qg6 {[%emt 0:08:10]} Qe7 {[%emt 0:00:57]} 22. Qxg5 {[%emt 0:00:24]} Rbe8 {[%emt 0:05:07]} 23. O-O-O {[%emt 0:00:56]} Nfxd5 {[%emt 0:09:45]} 24. Rxd5 {[%emt 0:00:09]} Nxd5 {[%emt 0:00:43]} 25. Qxd5+ {[%emt 0:00:03]} Qe6 {[%emt 0:01:20]} 26. Qxb7 {[%emt 0:06:00]} Rb8 {[%emt 0:00:50]} 27. Qd5 {[%emt 0:00:12]} Qxd5 {[%emt 0:00:41]} 28. Nexd5 {[%emt 0:00:04]} Rbe8 {[%emt 0:02:07]} 29. f3 {[%emt 0:01:22]} Be5 {[%emt 0:00:51]} 30. Bxe5 {[%emt 0:00:43]} Rxe5 {[%emt 0:00:09]} 31. f4 {[%emt 0:02:00]} Re6 {[%emt 0:01:09]} 32. g4 {[%emt 0:00:25]} Rfe8 {[%emt 0:01:05]} 33. Kd2 {[%emt 0:00:24]} Rb8 {[%emt 0:00:19]} 34. Kc2 {[%emt 0:00:11]} Kg7 {[%emt 0:00:30]} 35. b3 {[%emt 0:02:58]} Ree8 {[%emt 0:00:37]} 36. g5 {[%emt 0:00:32]} Rh8 {[%emt 0:00:08]} 37. Rxh8 {[%emt 0:00:09]} Rxh8 {[%emt 0:00:05]} 38. Nb5 {[%emt 0:01:49]} Kf7 {[%emt 0:01:00]} 39. f5 {[%emt 0:01:56]} Rh2+ {[%emt 0:00:35]} 40. Kd3 {[%emt 0:00:28]} Rh3+ {[%emt 0:00:20]} 41. Ke4 {[%emt 0:00:21]} Rh4+ {[%emt 0:00:27]} 42. Nf4 {[%emt 0:00:25]} Rh1 {[%emt 0:00:17]} 43. Nxd6+ {[%emt 0:00:25]} Ke7 {[%emt 0:00:07]} 44. Nc4 {[%emt 0:00:06]} Rd1 {[%emt 0:00:14]} 45. f6+ {[%emt 0:00:19]} Kf8 {[%emt 0:00:26]} 46. g6 {[%emt 0:00:09]} Re1+ {[%emt 0:00:25]} 47. Kd5 {[%emt 0:00:47]} a5 {[%emt 0:00:15]} 48. Ne6+ {[%emt 0:00:29]} Ke8 {[%emt 0:00:39]} 49. Ne5 {[%emt 0:01:09]} Rd1+ {[%emt 0:00:18]} 50. Kc6 {[%emt 0:00:15]} 1-0

[Event "XII Paracin Festival 2019"]
[Site "Paracin"]
[Date "2019.07.10"]
[Round "7.2"]
[White "Korpa, Bence"]
[Black "Peng, Xiongjian"]
[Result "1-0"]
[ECO "D02"]
[WhiteElo "2523"]
[BlackElo "2467"]
[Annotator "ChessBase"]
[PlyCount "85"]
[EventDate "2019.07.05"]
[EventType "swiss"]
[EventCountry "SRB"]
[SourceTitle "playchess.com"]
[Source "ChessBase"]
[SourceQuality "1"]
[TimeControl "5400+30"]

1. Nf3 {[%emt 0:00:00]} d5 {[%emt 0:00:00]} 2. d4 {[%emt 0:00:21]} Nf6 {[%emt 0:00:03]} 3. Bf4 {[%emt 0:00:13]} e6 {[%emt 0:02:22]} 4. e3 {[%emt 0:00:12]} Be7 {[%emt 0:01:40]} 5. Bd3 {[%emt 0:01:05]} Nbd7 {[%emt 0:02:07]} 6. Nbd2 {[%emt 0:01:26]} Nh5 {[%emt 0:00:38]} 7. Bg3 {[%emt 0:04:32]} f5 {[%emt 0:01:55]} 8. Ng5 {[%emt 0:04:16]} Bxg5 {[%emt 0:03:16]} 9. Bxc7 {[%emt 0:01:09]} Qe7 {[%emt 0:03:55]} 10. Qxh5+ {[%emt 0:00:18]} g6 {[%emt 0:00:05]} 11. Qe2 {[%emt 0:01:59]} O-O {[%emt 0:01:42]} 12. c3 {[%emt 0:01:08]} Nc5 {[%emt 0:03:03]} 13. Be5 {[%emt 0:00:19]} Nxd3+ {[%emt 0:01:00]} 14. Qxd3 {[%emt 0:00:09]} b6 {[%emt 0:04:13]} 15. f4 {[%emt 0:09:07]} Bh6 {[%emt 0:00:29]} 16. Nf3 {[%emt 0:01:31]} a5 {[%emt 0:04:13]} 17. h4 {[%emt 0:00:10]} Qe8 {[%emt 0:06:25]} 18. h5 {[%emt 0:11:17]} gxh5 {[%emt 0:00:39]} 19. Rh3 {[%emt 0:00:34]} Ra7 {[%emt 0:02:36]} 20. Kf2 {[%emt 0:00:18]} Bg7 {[%emt 0:05:05]} 21. Rah1 {[%emt 0:02:48]} Qa4 {[%emt 0:05:32]} 22. a3 {[%emt 0:01:39]} Bxe5 {[%emt 0:00:17]} 23. dxe5 {[%emt 0:00:09]} Rff7 {[%emt 0:06:18]} 24. Rxh5 {[%emt 0:03:15]} Rg7 {[%emt 0:00:22]} 25. Nd4 {[%emt 0:01:14]} Ba6 {[%emt 0:02:47]} 26. Qd1 {[%emt 0:05:19]} Qe8 {[%emt 0:00:08]} 27. Rh6 {[%emt 0:04:19]} Rg6 {[%emt 0:00:58]} 28. Qh5 {[%emt 0:02:53]} Rag7 {[%emt 0:01:02]} 29. Rxg6 {[%emt 0:00:07]} Qxg6 {[%emt 0:00:12]} 30. Qxg6 {[%emt 0:00:15]} Rxg6 {[%emt 0:00:06]} 31. Rh3 {[%emt 0:00:09]} Kh8 {[%emt 0:01:05]} 32. Rg3 {[%emt 0:00:06]} Rh6 {[%emt 0:00:06]} 33. Kg1 {[%emt 0:02:01]} Bb7 {[%emt 0:03:05]} 34. b3 {[%emt 0:04:35]} Ba6 {[%emt 0:00:55]} 35. b4 {[%emt 0:03:04]} Bb7 {[%emt 0:01:07]} 36. a4 {[%emt 0:01:34]} Bc8 {[%emt 0:01:30]} 37. bxa5 {[%emt 0:00:13]} bxa5 {[%emt 0:00:06]} 38. Nc6 {[%emt 0:00:24]} Rg6 {[%emt 0:00:29]} 39. Rxg6 {[%emt 0:00:06]} hxg6 {[%emt 0:00:02]} 40. Nxa5 {[%emt 0:00:05]} Kg7 {[%emt 0:00:24]} 41. Nc6 {[%emt 0:01:18]} Kf7 {[%emt 0:00:29]} 42. a5 {[%emt 0:00:13]} Ke8 {[%emt 0:00:21]} 43. Nb4 {[%emt 0:00:10]} 1-0

[Event "XII Paracin Festival 2019"]
[Site "Paracin"]
[Date "2019.07.10"]
[Round "7.3"]
[White "Song, Raymond"]
[Black "Kosic, Dragan"]
[Result "1-0"]
[ECO "C10"]
[WhiteElo "2456"]
[BlackElo "2482"]
[Annotator "ChessBase"]
[PlyCount "123"]
[EventDate "2019.07.05"]
[EventType "swiss"]
[EventCountry "SRB"]
[SourceTitle "playchess.com"]
[Source "ChessBase"]
[SourceQuality "1"]
[TimeControl "5400+30"]

1. e4 {[%emt 0:00:00]} e6 {[%emt 0:00:00]} 2. d4 {[%emt 0:00:00]} d5 {[%emt 0:00:00]} 3. Nc3 {[%emt 0:00:00]} dxe4 {[%emt 0:00:00]} 4. Nxe4 {[%emt 0:00:00]} Nd7 {[%emt 0:00:01]} 5. g3 {[%emt 0:00:00]} Be7 {[%emt 0:01:09]} 6. Bg2 {[%emt 0:00:11]} Ngf6 {[%emt 0:00:06]} 7. Nxf6+ {[%emt 0:00:23]} Bxf6 {[%emt 0:02:12]} 8. Ne2 {[%emt 0:00:26]} O-O {[%emt 0:00:37]} 9. O-O {[%emt 0:00:04]} Rb8 {[%emt 0:00:57]} 10. c4 {[%emt 0:06:36]} b6 {[%emt 0:01:57]} 11. Qa4 {[%emt 0:03:53]} a6 {[%emt 0:02:58]} 12. Bf4 {[%emt 0:00:17]} e5 {[%emt 0:05:16]} 13. dxe5 {[%emt 0:00:09]} Nxe5 {[%emt 0:06:03]} 14. Nc3 {[%emt 0:01:32]} Bd7 {[%emt 0:05:15]} 15. Qc2 {[%emt 0:04:16]} Ng6 {[%emt 0:07:02]} 16. Be3 {[%emt 0:01:05]} Qc8 {[%emt 0:09:17]} 17. Nd5 {[%emt 0:02:00]} Bd8 {[%emt 0:01:30]} 18. c5 {[%emt 0:01:23]} bxc5 {[%emt 0:04:13]} 19. Bxc5 {[%emt 0:00:23]} Re8 {[%emt 0:00:03]} 20. Rfe1 {[%emt 0:00:24]} Rxe1+ {[%emt 0:05:43]} 21. Rxe1 {[%emt 0:00:02]} c6 {[%emt 0:00:44]} 22. Nc3 {[%emt 0:01:34]} Bf6 {[%emt 0:06:12]} 23. Ne4 {[%emt 0:01:49]} Bxb2 {[%emt 0:05:24]} 24. Nd6 {[%emt 0:00:04]} Qd8 {[%emt 0:02:06]} 25. Nxf7 {[%emt 0:06:36]} Qf6 {[%emt 0:06:01]} 26. Nd6 {[%emt 0:05:33]} Qc3 {[%emt 0:00:11]} 27. Qxc3 {[%emt 0:00:04]} Bxc3 {[%emt 0:00:05]} 28. Rc1 {[%emt 0:00:32]} Ne5 {[%emt 0:07:14]} 29. h3 {[%emt 0:05:09]} Bb2 {[%emt 0:03:39]} 30. Rd1 {[%emt 0:00:25]} Be6 {[%emt 0:00:22]} 31. f4 {[%emt 0:01:47]} Nf7 {[%emt 0:03:37]} 32. Re1 {[%emt 0:04:55]} Bxa2 {[%emt 0:01:19]} 33. Nf5 {[%emt 0:00:04]} Bf6 {[%emt 0:04:43]} 34. Ne7+ {[%emt 0:04:53]} Bxe7 {[%emt 0:00:40]} 35. Rxe7 {[%emt 0:00:04]} Bd5 {[%emt 0:00:51]} 36. Bf1 {[%emt 0:00:02]} h5 {[%emt 0:00:21]} 37. Bd3 {[%emt 0:01:44]} a5 {[%emt 0:02:37]} 38. Bg6 {[%emt 0:02:47]} h4 {[%emt 0:01:21]} 39. gxh4 {[%emt 0:00:40]} a4 {[%emt 0:01:10]} 40. h5 {[%emt 0:00:40]} Ra8 {[%emt 0:01:09]} 41. Kf2 {[%emt 0:00:26]} Nh6 {[%emt 0:00:46]} 42. Rc7 {[%emt 0:01:03]} Be6 {[%emt 0:01:15]} 43. Ba3 {[%emt 0:03:55]} Rb8 {[%emt 0:00:55]} 44. Ra7 {[%emt 0:02:41]} Bxh3 {[%emt 0:00:26]} 45. Bd6 {[%emt 0:00:28]} Rd8 {[%emt 0:00:27]} 46. Bc7 {[%emt 0:02:07]} Rc8 {[%emt 0:01:01]} 47. Kg3 {[%emt 0:00:33]} Be6 {[%emt 0:00:14]} 48. Be5 {[%emt 0:01:14]} Nf7 {[%emt 0:00:05]} 49. Bc3 {[%emt 0:00:33]} Bb3 {[%emt 0:00:32]} 50. f5 {[%emt 0:00:37]} Rd8 {[%emt 0:00:23]} 51. f6 {[%emt 0:00:08]} gxf6 {[%emt 0:00:57]} 52. Bxf6 {[%emt 0:00:01]} Rb8 {[%emt 0:00:50]} 53. h6 {[%emt 0:06:33]} Nxh6 {[%emt 0:00:08]} 54. Bh7+ {[%emt 0:03:35]} Kf8 {[%emt 0:00:06]} 55. Bg7+ {[%emt 0:00:02]} Ke8 {[%emt 0:00:05]} 56. Bxh6 {[%emt 0:00:02]} Be6 {[%emt 0:00:22]} 57. Kf4 {[%emt 0:01:10]} Rb5 {[%emt 0:01:51]} 58. Bg5 {[%emt 0:00:54]} Bb3 {[%emt 0:01:25]} 59. Bg6+ {[%emt 0:00:14]} Kf8 {[%emt 0:00:13]} 60. Bf6 {[%emt 0:00:19]} Rb8 {[%emt 0:00:28]} 61. Bg7+ {[%emt 0:00:26]} Kg8 {[%emt 0:00:17]} 62. Bh7+ {[%emt 0:00:03]} 1-0

[Event "XII Paracin Festival 2019"]
[Site "Paracin"]
[Date "2019.07.10"]
[Round "7.4"]
[White "Lorparizangeneh, Shahin"]
[Black "Ratkovic, Milovan"]
[Result "1-0"]
[ECO "D07"]
[WhiteElo "2494"]
[BlackElo "2407"]
[Annotator "ChessBase"]
[PlyCount "65"]
[EventDate "2019.07.05"]
[EventType "swiss"]
[EventCountry "SRB"]
[SourceTitle "playchess.com"]
[Source "ChessBase"]
[SourceQuality "1"]
[TimeControl "5400+30"]

1. d4 {[%emt 0:02:17]} d5 {[%emt 0:00:00]} 2. c4 {[%emt 0:00:40]} Nc6 {[%emt 0:00:10]} 3. Nf3 {[%emt 0:04:24]} Bg4 {[%emt 0:00:28]} 4. cxd5 {[%emt 0:00:19]} Bxf3 {[%emt 0:00:16]} 5. gxf3 {[%emt 0:00:05]} Qxd5 {[%emt 0:00:10]} 6. e3 {[%emt 0:00:07]} e5 {[%emt 0:02:03]} 7. Nc3 {[%emt 0:01:37]} Bb4 {[%emt 0:00:51]} 8. Bd2 {[%emt 0:00:17]} Bxc3 {[%emt 0:01:11]} 9. bxc3 {[%emt 0:00:06]} Qd6 {[%emt 0:02:42]} 10. Rb1 {[%emt 0:01:11]} Nge7 {[%emt 0:01:04]} 11. Rxb7 {[%emt 0:09:40]} O-O {[%emt 0:00:16]} 12. Bd3 {[%emt 0:01:02]} Ng6 {[%emt 0:07:11]} 13. h4 {[%emt 0:08:16]} h5 {[%emt 0:20:23]} 14. Qa4 {[%emt 0:10:45]} Rab8 {[%emt 0:08:00]} 15. Rb3 {[%emt 0:07:14]} Rb6 {[%emt 0:12:26]} 16. Bc1 {[%emt 0:08:26]} Qf6 {[%emt 0:07:57]} 17. Be4 {[%emt 0:00:45]} Nce7 {[%emt 0:00:38]} 18. Ba3 {[%emt 0:01:37]} Ra6 {[%emt 0:12:18]} 19. Qd7 {[%emt 0:05:05]} exd4 {[%emt 0:13:38]} 20. cxd4 {[%emt 0:08:39]} Re6 {[%emt 0:00:13]} 21. Qb5 {[%emt 0:02:49]} c5 {[%emt 0:02:38]} 22. Bxc5 {[%emt 0:04:17]} Nxh4 {[%emt 0:02:50]} 23. Bxe7 {[%emt 0:01:06]} Qxe7 {[%emt 0:00:15]} 24. Qb7 {[%emt 0:05:06]} Qf6 {[%emt 0:00:37]} 25. Rb5 {[%emt 0:05:23]} g6 {[%emt 0:00:21]} 26. f4 {[%emt 0:00:56]} Rd8 {[%emt 0:01:40]} 27. Re5 {[%emt 0:01:11]} Rxe5 {[%emt 0:02:11]} 28. dxe5 {[%emt 0:01:13]} Qe6 {[%emt 0:00:02]} 29. Rxh4 {[%emt 0:01:06]} Qxa2 {[%emt 0:00:55]} 30. Qb1 {[%emt 0:01:27]} Qa3 {[%emt 0:01:03]} 31. Ke2 {[%emt 0:00:44]} Rc8 {[%emt 0:00:29]} 32. Rh1 {[%emt 0:01:41]} Rc3 {[%emt 0:00:32]} 33. Kf3 {[%emt 0:01:25]} 1-0